[Event "Titled Tuesday Blitz February 15 Early 2022"]
[White "Daneshvar, Bardiya"]
[Black "Narayanan.S.L"]
[WhiteFideId "12576468"]
[BlackFideId "5058422"]
[WhiteElo "2295"]
[BlackElo "2494"]
[Result "1/2-1/2"]
[Round "05"]
[TimeControl "180+1"]
[Date "2022.02.15"]
[WhiteClock "0:00:08"]
[BlackClock "0:00:20"]

1. d4 {[%clk 0:02:52]}  d5 {[%clk 0:02:58]} 2. c4 {[%clk 0:02:51]}  c6 {[%clk 0:02:58]} 3. cxd5 {[%clk 0:02:51]}  cxd5 {[%clk 0:02:58]} 4. Bf4 {[%clk 0:02:52]}  Nc6 {[%clk 0:02:57]} 5. e3 {[%clk 0:02:52]}  Nf6 {[%clk 0:02:56]} 6. Nc3 {[%clk 0:02:52]}  Bg4 {[%clk 0:02:56]} 7. Qb3 {[%clk 0:02:51]}  Na5 {[%clk 0:02:56]} 8. Qa4+ {[%clk 0:02:52]}  Bd7 {[%clk 0:02:56]} 9. Qc2 {[%clk 0:02:51]}  Rc8 {[%clk 0:02:54]} 10. Nf3 {[%clk 0:02:48]}  g6 {[%clk 0:02:53]} 11. h3 {[%clk 0:02:43]}  Bg7 {[%clk 0:02:52]} 12. Ne5 {[%clk 0:02:39]}  Ne4 {[%clk 0:02:43]} 13. Nxd7 {[%clk 0:02:31]}  Qxd7 {[%clk 0:02:42]} 14. Bd3 {[%clk 0:02:25]}  Nxc3 {[%clk 0:02:41]} 15. bxc3 {[%clk 0:02:26]}  O-O {[%clk 0:02:42]} 16. O-O {[%clk 0:02:24]}  Nc4 {[%clk 0:02:40]} 17. a4 {[%clk 0:02:09]}  b6 {[%clk 0:02:25]} 18. Rfb1 {[%clk 0:02:02]}  Rc6 {[%clk 0:02:25]} 19. Bxc4 {[%clk 0:02:01]}  Rxc4 {[%clk 0:02:24]} 20. a5 {[%clk 0:01:59]}  Qc6 {[%clk 0:01:51]} 21. axb6 {[%clk 0:01:40]}  axb6 {[%clk 0:01:52]} 22. Rb3 {[%clk 0:01:25]}  Rc8 {[%clk 0:01:18]} 23. Rab1 {[%clk 0:01:22]}  b5 {[%clk 0:01:14]} 24. Qb2 {[%clk 0:01:08]}  h5 {[%clk 0:01:14]} 25. h4 {[%clk 0:00:51]}  e6 {[%clk 0:01:13]} 26. g3 {[%clk 0:00:42]}  Bf8 {[%clk 0:01:13]} 27. Kg2 {[%clk 0:00:39]}  b4 {[%clk 0:01:06]} 28. cxb4 {[%clk 0:00:31]}  Rc2 {[%clk 0:01:07]} 29. Qa1 {[%clk 0:00:26]}  Qb5 {[%clk 0:01:03]} 30. R1b2 {[%clk 0:00:20]}  Qe2 {[%clk 0:01:02]} 31. Rxc2 {[%clk 0:00:16]}  Rxc2 {[%clk 0:01:00]} 32. Qf1 {[%clk 0:00:16]}  Qd2 {[%clk 0:00:58]} 33. b5 {[%clk 0:00:05]}  Rb2 {[%clk 0:00:36]} 34. Rxb2 {[%clk 0:00:05]}  Qxb2 {[%clk 0:00:37]} 35. Qd3 {[%clk 0:00:05]}  Bb4 {[%clk 0:00:37]} 36. Qf1 {[%clk 0:00:03]}  Be7 {[%clk 0:00:33]} 37. Bc7 {[%clk 0:00:03]}  g5 {[%clk 0:00:29]} 38. hxg5 {[%clk 0:00:02]}  Bxg5 {[%clk 0:00:30]} 39. b6 {[%clk 0:00:03]}  Bxe3 {[%clk 0:00:30]} 40. Qa6 {[%clk 0:00:01]}  Qxf2+ {[%clk 0:00:29]} 41. Kh3 {[%clk 0:00:02]}  Qg1 {[%clk 0:00:23]} 42. Qe2 {[%clk 0:00:02]}  Qh1+ {[%clk 0:00:18]} 43. Qh2 {[%clk 0:00:01]}  Qf1+ {[%clk 0:00:18]} 44. Qg2 {[%clk 0:00:02]}  Qf5+ {[%clk 0:00:19]} 45. g4 {[%clk 0:00:02]}  hxg4+ {[%clk 0:00:17]} 46. Qxg4+ {[%clk 0:00:03]}  Qxg4+ {[%clk 0:00:17]} 47. Kxg4 {[%clk 0:00:04]}  Bxd4 {[%clk 0:00:18]} 48. b7 {[%clk 0:00:04]}  Ba7 {[%clk 0:00:19]} 49. b8=Q+ {[%clk 0:00:05]}  Bxb8 {[%clk 0:00:19]} 50. Bxb8 {[%clk 0:00:05]}  f6 {[%clk 0:00:19]} 51. Ba7 {[%clk 0:00:05]}  Kf7 {[%clk 0:00:19]} 52. Kf4 {[%clk 0:00:05]}  Ke7 {[%clk 0:00:19]} 53. Bd4 {[%clk 0:00:06]}  Kf7 {[%clk 0:00:18]} 54. Ba1 {[%clk 0:00:05]}  Ke7 {[%clk 0:00:18]} 55. Bb2 {[%clk 0:00:06]}  f5 {[%clk 0:00:18]} 56. Ke5 {[%clk 0:00:06]}  Kf7 {[%clk 0:00:18]} 57. Bc1 {[%clk 0:00:06]}  Ke7 {[%clk 0:00:18]} 58. Bg5+ {[%clk 0:00:06]}  Kd7 {[%clk 0:00:18]} 59. Be3 {[%clk 0:00:06]}  Kc6 {[%clk 0:00:16]} 60. Kxe6 {[%clk 0:00:06]}  f4 {[%clk 0:00:17]} 61. Bxf4 {[%clk 0:00:06]}  d4 {[%clk 0:00:18]} 62. Ke5 {[%clk 0:00:07]}  d3 {[%clk 0:00:19]} 63. Ke4 {[%clk 0:00:07]}  d2 {[%clk 0:00:20]} 64. Bxd2 {[%clk 0:00:08]} 1/2-1/2


[Site "https://www.chess.com"]

[Event "Titled Tuesday Blitz February 15 Early 2022"]
[White "Demidov, Mikhail"]
[Black "Shyaamnikhil P"]
[WhiteFideId "4197143"]
[BlackFideId "5024218"]
[WhiteElo "2525"]
[BlackElo "2292"]
[Result "0-1"]
[Round "05"]
[TimeControl "180+1"]
[Date "2022.02.15"]
[WhiteClock "0:00:15"]
[BlackClock "0:00:18"]

1. Nf3 {[%clk 0:02:31]}  Nf6 {[%clk 0:02:58]} 2. g3 {[%clk 0:02:31]}  g6 {[%clk 0:02:56]} 3. b3 {[%clk 0:02:31]}  Bg7 {[%clk 0:02:56]} 4. Bb2 {[%clk 0:02:32]}  O-O {[%clk 0:02:57]} 5. Bg2 {[%clk 0:02:32]}  a5 {[%clk 0:02:57]} 6. O-O {[%clk 0:02:32]}  a4 {[%clk 0:02:56]} 7. c4 {[%clk 0:02:32]}  c6 {[%clk 0:02:53]} 8. d3 {[%clk 0:02:29]}  d5 {[%clk 0:02:53]} 9. Qc2 {[%clk 0:02:27]}  Na6 {[%clk 0:02:50]} 10. bxa4 {[%clk 0:02:24]}  Nc5 {[%clk 0:02:45]} 11. cxd5 {[%clk 0:02:24]}  Nxa4 {[%clk 0:02:45]} 12. dxc6 {[%clk 0:02:20]}  Nxb2 {[%clk 0:02:45]} 13. Qxb2 {[%clk 0:02:17]}  bxc6 {[%clk 0:02:41]} 14. Nbd2 {[%clk 0:02:10]}  Ne4 {[%clk 0:02:10]} 15. d4 {[%clk 0:02:06]}  Nxd2 {[%clk 0:02:07]} 16. Qxd2 {[%clk 0:02:07]}  c5 {[%clk 0:02:03]} 17. Rad1 {[%clk 0:02:06]}  cxd4 {[%clk 0:01:53]} 18. Nxd4 {[%clk 0:02:07]}  Ra4 {[%clk 0:01:50]} 19. Nc6 {[%clk 0:02:06]}  Qc7 {[%clk 0:01:45]} 20. Rc1 {[%clk 0:01:45]}  Be6 {[%clk 0:01:38]} 21. Rc2 {[%clk 0:01:44]}  Bf6 {[%clk 0:01:27]} 22. e3 {[%clk 0:01:33]}  Qb6 {[%clk 0:01:22]} 23. Rfc1 {[%clk 0:01:22]}  Kg7 {[%clk 0:01:20]} 24. h4 {[%clk 0:01:15]}  h5 {[%clk 0:01:19]} 25. Bd5 {[%clk 0:01:03]}  Bf5 {[%clk 0:01:08]} 26. Rc4 {[%clk 0:01:01]}  Rxc4 {[%clk 0:01:06]} 27. Rxc4 {[%clk 0:00:59]}  Bd7 {[%clk 0:00:55]} 28. Bf3 {[%clk 0:00:46]}  Bxc6 {[%clk 0:00:46]} 29. Rxc6 {[%clk 0:00:46]}  Qa7 {[%clk 0:00:46]} 30. Rc2 {[%clk 0:00:43]}  Rb8 {[%clk 0:00:45]} 31. Kg2 {[%clk 0:00:43]}  Rb1 {[%clk 0:00:42]} 32. Qd3 {[%clk 0:00:31]}  Qa5 {[%clk 0:00:37]} 33. Rd2 {[%clk 0:00:23]}  Rc1 {[%clk 0:00:29]} 34. Bd5 {[%clk 0:00:19]}  Rc3 {[%clk 0:00:29]} 35. Qe2 {[%clk 0:00:17]}  Rc1 {[%clk 0:00:23]} 36. Rd1 {[%clk 0:00:15]}  Rxd1 {[%clk 0:00:18]} 0-1


[Site "https://www.chess.com"]

[Event "Titled Tuesday Blitz February 15 Early 2022"]
[White "Desideri, Ricardo Maruchi"]
[Black "Dzhaparov, Medet"]
[WhiteFideId "2110440"]
[BlackFideId "13803689"]
[WhiteElo "1945"]
[BlackElo "1702"]
[Result "0-1"]
[Round "05"]
[TimeControl "180+1"]
[Date "2022.02.15"]
[WhiteClock "0:00:01"]
[BlackClock "0:00:40"]

1. e4 {[%clk 0:02:58]}  e5 {[%clk 0:02:59]} 2. Nf3 {[%clk 0:02:56]}  Nc6 {[%clk 0:02:59]} 3. d4 {[%clk 0:02:57]}  exd4 {[%clk 0:02:58]} 4. Nxd4 {[%clk 0:02:57]}  Bc5 {[%clk 0:02:58]} 5. Nb3 {[%clk 0:02:55]}  Bb6 {[%clk 0:02:56]} 6. Nc3 {[%clk 0:02:53]}  d6 {[%clk 0:02:55]} 7. Qe2 {[%clk 0:02:53]}  Nf6 {[%clk 0:02:54]} 8. h3 {[%clk 0:02:47]}  O-O {[%clk 0:02:54]} 9. Be3 {[%clk 0:02:46]}  Bxe3 {[%clk 0:02:54]} 10. Qxe3 {[%clk 0:02:46]}  d5 {[%clk 0:02:50]} 11. O-O-O {[%clk 0:02:41]}  Re8 {[%clk 0:02:19]} 12. Nxd5 {[%clk 0:02:32]}  Nxe4 {[%clk 0:02:08]} 13. Qf4 {[%clk 0:01:21]}  Nd6 {[%clk 0:01:46]} 14. Bd3 {[%clk 0:01:02]}  Be6 {[%clk 0:01:37]} 15. Nc3 {[%clk 0:00:44]}  h6 {[%clk 0:01:27]} 16. Rhe1 {[%clk 0:00:37]}  Bxb3 {[%clk 0:01:20]} 17. axb3 {[%clk 0:00:36]}  Rxe1 {[%clk 0:01:20]} 18. Rxe1 {[%clk 0:00:35]}  a5 {[%clk 0:01:20]} 19. g4 {[%clk 0:00:24]}  Nb4 {[%clk 0:01:15]} 20. Rd1 {[%clk 0:00:16]}  Qh4 {[%clk 0:01:07]} 21. Bc4 {[%clk 0:00:15]}  Nxc4 {[%clk 0:01:06]} 22. bxc4 {[%clk 0:00:14]}  c6 {[%clk 0:01:01]} 23. Ne4 {[%clk 0:00:14]}  Qe7 {[%clk 0:00:59]} 24. Nd6 {[%clk 0:00:12]}  a4 {[%clk 0:00:58]} 25. c5 {[%clk 0:00:10]}  Nd5 {[%clk 0:00:54]} 26. Qf3 {[%clk 0:00:08]}  Qe5 {[%clk 0:00:51]} 27. Kb1 {[%clk 0:00:06]}  Qe6 {[%clk 0:00:49]} 28. h4 {[%clk 0:00:04]}  b5 {[%clk 0:00:46]} 29. g5 {[%clk 0:00:04]}  b4 {[%clk 0:00:45]} 30. gxh6 {[%clk 0:00:03]}  Qxh6 {[%clk 0:00:42]} 31. Qxf7+ {[%clk 0:00:01]}  Kh8 {[%clk 0:00:43]} 32. Nf5 {[%clk 0:00:01]}  Qf6 {[%clk 0:00:40]} 0-1


[Site "https://www.chess.com"]

[Event "Titled Tuesday Blitz February 15 Early 2022"]
[White "Devaev, Alexander"]
[Black "Alavi, Sayed Javad"]
[WhiteFideId "4169395"]
[BlackFideId "12500607"]
[WhiteElo "2185"]
[BlackElo "2475"]
[Result "1-0"]
[Round "05"]
[TimeControl "180+1"]
[Date "2022.02.15"]
[WhiteClock "0:00:35"]
[BlackClock "0:00:01"]

1. Nf3 {[%clk 0:02:51]}  Nf6 {[%clk 0:02:56]} 2. c4 {[%clk 0:02:50]}  e6 {[%clk 0:02:57]} 3. Nc3 {[%clk 0:02:51]}  d5 {[%clk 0:02:57]} 4. cxd5 {[%clk 0:02:52]}  exd5 {[%clk 0:02:57]} 5. d4 {[%clk 0:02:52]}  c6 {[%clk 0:02:56]} 6. Bg5 {[%clk 0:02:53]}  Bf5 {[%clk 0:02:57]} 7. e3 {[%clk 0:02:53]}  Nbd7 {[%clk 0:02:55]} 8. Nh4 {[%clk 0:02:53]}  Be6 {[%clk 0:02:48]} 9. Nf3 {[%clk 0:02:50]}  h6 {[%clk 0:02:48]} 10. Bh4 {[%clk 0:02:49]}  Bf5 {[%clk 0:02:49]} 11. Bd3 {[%clk 0:02:47]}  Bxd3 {[%clk 0:02:48]} 12. Qxd3 {[%clk 0:02:48]}  Bd6 {[%clk 0:02:38]} 13. O-O {[%clk 0:02:48]}  O-O {[%clk 0:02:35]} 14. Rab1 {[%clk 0:02:49]}  a5 {[%clk 0:02:32]} 15. Rfe1 {[%clk 0:02:38]}  Re8 {[%clk 0:02:23]} 16. a3 {[%clk 0:02:38]}  Qc7 {[%clk 0:02:18]} 17. Rbc1 {[%clk 0:02:36]}  Qd8 {[%clk 0:01:36]} 18. Rb1 {[%clk 0:02:33]}  Re6 {[%clk 0:01:33]} 19. Rec1 {[%clk 0:02:32]}  Qe8 {[%clk 0:01:27]} 20. Bxf6 {[%clk 0:02:25]}  Nxf6 {[%clk 0:01:27]} 21. b4 {[%clk 0:02:26]}  axb4 {[%clk 0:01:27]} 22. axb4 {[%clk 0:02:26]}  Ra3 {[%clk 0:01:09]} 23. Qc2 {[%clk 0:02:16]}  Ne4 {[%clk 0:01:01]} 24. Nxe4 {[%clk 0:01:56]}  Rxe4 {[%clk 0:01:02]} 25. Nd2 {[%clk 0:01:57]}  Re6 {[%clk 0:01:01]} 26. b5 {[%clk 0:01:57]}  Ra8 {[%clk 0:00:39]} 27. bxc6 {[%clk 0:01:56]}  bxc6 {[%clk 0:00:40]} 28. g3 {[%clk 0:01:51]}  Rc8 {[%clk 0:00:39]} 29. Nb3 {[%clk 0:01:46]}  h5 {[%clk 0:00:37]} 30. Qf5 {[%clk 0:01:34]}  h4 {[%clk 0:00:36]} 31. Rc3 {[%clk 0:01:26]}  hxg3 {[%clk 0:00:34]} 32. hxg3 {[%clk 0:01:26]}  g6 {[%clk 0:00:33]} 33. Qg4 {[%clk 0:01:21]}  Kg7 {[%clk 0:00:32]} 34. Kg2 {[%clk 0:01:20]}  Qd7 {[%clk 0:00:20]} 35. Rbc1 {[%clk 0:01:15]}  Bb4 {[%clk 0:00:19]} 36. R3c2 {[%clk 0:01:10]}  Ba3 {[%clk 0:00:19]} 37. Rh1 {[%clk 0:01:09]}  Rh8 {[%clk 0:00:18]} 38. Rxh8 {[%clk 0:01:08]}  Kxh8 {[%clk 0:00:19]} 39. Nd2 {[%clk 0:00:58]}  Kg7 {[%clk 0:00:18]} 40. Nf3 {[%clk 0:00:58]}  Qe7 {[%clk 0:00:13]} 41. Rc3 {[%clk 0:00:42]}  Re4 {[%clk 0:00:12]} 42. Qc8 {[%clk 0:00:40]}  Re6 {[%clk 0:00:07]} 43. Rxc6 {[%clk 0:00:40]}  Rxc6 {[%clk 0:00:07]} 44. Qxc6 {[%clk 0:00:41]}  Qe4 {[%clk 0:00:08]} 45. Qc7 {[%clk 0:00:40]}  Be7 {[%clk 0:00:07]} 46. Qe5+ {[%clk 0:00:40]}  Qxe5 {[%clk 0:00:06]} 47. Nxe5 {[%clk 0:00:40]}  Kf6 {[%clk 0:00:07]} 48. Nd3 {[%clk 0:00:41]}  Ke6 {[%clk 0:00:06]} 49. Kf3 {[%clk 0:00:38]}  Kd6 {[%clk 0:00:06]} 50. Ke2 {[%clk 0:00:39]}  g5 {[%clk 0:00:05]} 51. Ne5 {[%clk 0:00:39]}  f6 {[%clk 0:00:05]} 52. Nd3 {[%clk 0:00:38]}  Ke6 {[%clk 0:00:05]} 53. Nc5+ {[%clk 0:00:35]}  Kd6 {[%clk 0:00:04]} 54. g4 {[%clk 0:00:36]}  Kc6 {[%clk 0:00:03]} 55. Ne6 {[%clk 0:00:33]}  Kd6 {[%clk 0:00:03]} 56. Ng7 {[%clk 0:00:34]}  Bd8 {[%clk 0:00:03]} 57. Nf5+ {[%clk 0:00:35]}  Ke6 {[%clk 0:00:03]} 58. Kd3 {[%clk 0:00:35]}  Bc7 {[%clk 0:00:02]} 59. f3 {[%clk 0:00:36]}  Ba5 {[%clk 0:00:02]} 60. e4 {[%clk 0:00:36]}  Bb6 {[%clk 0:00:01]} 61. Ne3 {[%clk 0:00:35]} 1-0


[Site "https://www.chess.com"]

[Event "Titled Tuesday Blitz February 15 Early 2022"]
[White "Dew, Brian"]
[Black "Aydin, Gulenay"]
[WhiteFideId "6000495"]
[BlackFideId "34557431"]
[WhiteElo "2118"]
[BlackElo "1429"]
[Result "1-0"]
[Round "05"]
[TimeControl "180+1"]
[Date "2022.02.15"]
[WhiteClock "0:01:23"]
[BlackClock "0:00:19"]

1. b3 {[%clk 0:03:00]}  Nf6 {[%clk 0:02:59]} 2. Bb2 {[%clk 0:03:01]}  g6 {[%clk 0:03:00]} 3. g3 {[%clk 0:03:01]}  Bg7 {[%clk 0:03:00]} 4. c4 {[%clk 0:03:01]}  O-O {[%clk 0:03:00]} 5. Bg2 {[%clk 0:03:02]}  d6 {[%clk 0:03:01]} 6. Nf3 {[%clk 0:03:01]}  e5 {[%clk 0:03:01]} 7. d3 {[%clk 0:02:58]}  c6 {[%clk 0:03:01]} 8. O-O {[%clk 0:02:58]}  Re8 {[%clk 0:03:01]} 9. Nbd2 {[%clk 0:02:56]}  Nbd7 {[%clk 0:03:00]} 10. Qc2 {[%clk 0:02:54]}  Rb8 {[%clk 0:02:59]} 11. Rac1 {[%clk 0:02:52]}  a5 {[%clk 0:02:59]} 12. a3 {[%clk 0:02:52]}  Nf8 {[%clk 0:02:56]} 13. Rfe1 {[%clk 0:02:47]}  Bg4 {[%clk 0:02:49]} 14. h3 {[%clk 0:02:45]}  Be6 {[%clk 0:02:46]} 15. b4 {[%clk 0:02:45]}  axb4 {[%clk 0:02:45]} 16. axb4 {[%clk 0:02:46]}  N6d7 {[%clk 0:02:46]} 17. d4 {[%clk 0:02:36]}  f5 {[%clk 0:02:40]} 18. dxe5 {[%clk 0:02:31]}  dxe5 {[%clk 0:02:30]} 19. e4 {[%clk 0:02:30]}  f4 {[%clk 0:02:22]} 20. c5 {[%clk 0:02:23]}  g5 {[%clk 0:02:09]} 21. Nc4 {[%clk 0:02:21]}  Ng6 {[%clk 0:02:07]} 22. Rcd1 {[%clk 0:02:17]}  Qf6 {[%clk 0:01:59]} 23. Rd6 {[%clk 0:01:56]}  Qf7 {[%clk 0:01:47]} 24. Nxg5 {[%clk 0:01:54]}  Qf6 {[%clk 0:01:28]} 25. Nxe6 {[%clk 0:01:53]}  Rxe6 {[%clk 0:01:29]} 26. Rxd7 {[%clk 0:01:53]}  Rf8 {[%clk 0:01:25]} 27. Rd6 {[%clk 0:01:48]}  f3 {[%clk 0:01:22]} 28. Rxe6 {[%clk 0:01:43]}  Qxe6 {[%clk 0:01:23]} 29. Bf1 {[%clk 0:01:43]}  Kh8 {[%clk 0:01:19]} 30. Nd6 {[%clk 0:01:43]}  Bh6 {[%clk 0:01:16]} 31. Rd1 {[%clk 0:01:33]}  Rg8 {[%clk 0:00:55]} 32. Kh1 {[%clk 0:01:28]}  Nf4 {[%clk 0:00:28]} 33. Bxe5+ {[%clk 0:01:25]}  Bg7 {[%clk 0:00:19]} 34. Bxf4 {[%clk 0:01:23]} 1-0


[Site "https://www.chess.com"]

[Event "Titled Tuesday Blitz February 15 Early 2022"]
[White "Djokic, Mihailo"]
[Black "Jaracz, Pawel"]
[WhiteFideId "976440"]
[BlackFideId "1102222"]
[WhiteElo "2581"]
[BlackElo "2798"]
[Result "0-1"]
[Round "05"]
[TimeControl "180+1"]
[Date "2022.02.15"]
[WhiteClock "0:00:03"]
[BlackClock "0:00:10"]

1. e4 {[%clk 0:03:00]}  e5 {[%clk 0:03:00]} 2. Nf3 {[%clk 0:03:00]}  Nc6 {[%clk 0:03:00]} 3. Nc3 {[%clk 0:03:01]}  Nge7 {[%clk 0:02:59]} 4. d4 {[%clk 0:02:58]}  exd4 {[%clk 0:02:55]} 5. Nxd4 {[%clk 0:02:59]}  Nxd4 {[%clk 0:02:55]} 6. Qxd4 {[%clk 0:02:59]}  Nc6 {[%clk 0:02:55]} 7. Qe3 {[%clk 0:02:59]}  Bb4 {[%clk 0:01:51]} 8. Bd2 {[%clk 0:02:53]}  O-O {[%clk 0:01:51]} 9. Be2 {[%clk 0:02:47]}  d6 {[%clk 0:01:51]} 10. a3 {[%clk 0:02:44]}  Bc5 {[%clk 0:01:49]} 11. Qg3 {[%clk 0:02:44]}  f5 {[%clk 0:01:42]} 12. O-O {[%clk 0:02:37]}  Kh8 {[%clk 0:01:32]} 13. Rae1 {[%clk 0:02:27]}  Qf6 {[%clk 0:01:29]} 14. Bg5 {[%clk 0:02:24]}  Qf7 {[%clk 0:01:29]} 15. exf5 {[%clk 0:01:58]}  Bxf5 {[%clk 0:01:28]} 16. Bd3 {[%clk 0:01:49]}  Ne5 {[%clk 0:01:22]} 17. Bxf5 {[%clk 0:01:40]}  Qxf5 {[%clk 0:01:23]} 18. Ne4 {[%clk 0:01:35]}  Bb6 {[%clk 0:01:22]} 19. Kh1 {[%clk 0:01:23]}  Rae8 {[%clk 0:01:21]} 20. Bd2 {[%clk 0:01:18]}  Bd4 {[%clk 0:01:09]} 21. Bc3 {[%clk 0:01:08]}  Bxc3 {[%clk 0:01:06]} 22. Nxc3 {[%clk 0:01:08]}  Qxc2 {[%clk 0:00:58]} 23. Re2 {[%clk 0:01:07]}  Qd3 {[%clk 0:00:45]} 24. Rfe1 {[%clk 0:01:07]}  Qxg3 {[%clk 0:00:44]} 25. hxg3 {[%clk 0:01:08]}  Rd8 {[%clk 0:00:42]} 26. Nd5 {[%clk 0:01:07]}  c6 {[%clk 0:00:40]} 27. Nf4 {[%clk 0:01:07]}  Rd7 {[%clk 0:00:37]} 28. Rd1 {[%clk 0:01:06]}  Nc4 {[%clk 0:00:35]} 29. a4 {[%clk 0:00:52]}  g5 {[%clk 0:00:30]} 30. Nh3 {[%clk 0:00:49]}  h6 {[%clk 0:00:28]} 31. b3 {[%clk 0:00:49]}  Nb6 {[%clk 0:00:26]} 32. Re6 {[%clk 0:00:49]}  Kg7 {[%clk 0:00:16]} 33. Rdxd6 {[%clk 0:00:42]}  Rfd8 {[%clk 0:00:16]} 34. Rg6+ {[%clk 0:00:41]}  Kf7 {[%clk 0:00:15]} 35. Rdf6+ {[%clk 0:00:41]}  Ke8 {[%clk 0:00:15]} 36. Rxh6 {[%clk 0:00:39]}  Nd5 {[%clk 0:00:14]} 37. Rfg6 {[%clk 0:00:36]}  Re7 {[%clk 0:00:13]} 38. Rh8+ {[%clk 0:00:33]}  Kd7 {[%clk 0:00:13]} 39. Rxd8+ {[%clk 0:00:34]}  Kxd8 {[%clk 0:00:14]} 40. Nxg5 {[%clk 0:00:33]}  Re2 {[%clk 0:00:14]} 41. f4 {[%clk 0:00:30]}  Ne3 {[%clk 0:00:14]} 42. Re6 {[%clk 0:00:26]}  Nf1 {[%clk 0:00:11]} 43. Rxe2 {[%clk 0:00:17]}  Nxg3+ {[%clk 0:00:11]} 44. Kh2 {[%clk 0:00:17]}  Nxe2 {[%clk 0:00:12]} 45. f5 {[%clk 0:00:16]}  Nd4 {[%clk 0:00:13]} 46. f6 {[%clk 0:00:12]}  Nxb3 {[%clk 0:00:13]} 47. g4 {[%clk 0:00:10]}  Nd4 {[%clk 0:00:11]} 48. Kg3 {[%clk 0:00:07]}  b5 {[%clk 0:00:12]} 49. axb5 {[%clk 0:00:07]}  cxb5 {[%clk 0:00:12]} 50. Kf4 {[%clk 0:00:06]}  b4 {[%clk 0:00:12]} 51. Ke4 {[%clk 0:00:05]}  b3 {[%clk 0:00:12]} 52. Kxd4 {[%clk 0:00:03]}  b2 {[%clk 0:00:13]} 53. Ne6+ {[%clk 0:00:02]}  Kd7 {[%clk 0:00:12]} 54. Nc5+ {[%clk 0:00:01]}  Ke8 {[%clk 0:00:10]} 55. g5 {[%clk 0:00:02]}  b1=Q {[%clk 0:00:11]} 56. Ne4 {[%clk 0:00:02]}  Qb4+ {[%clk 0:00:11]} 57. Ke5 {[%clk 0:00:03]}  Qb5+ {[%clk 0:00:11]} 58. Ke6 {[%clk 0:00:03]}  Qd7+ {[%clk 0:00:09]} 59. Ke5 {[%clk 0:00:03]}  Kf7 {[%clk 0:00:10]} 60. Kf4 {[%clk 0:00:02]}  Kg6 {[%clk 0:00:09]} 61. Nc5 {[%clk 0:00:02]}  Qd6+ {[%clk 0:00:10]} 62. Ke4 {[%clk 0:00:02]}  Qxc5 {[%clk 0:00:10]} 63. f7 {[%clk 0:00:03]} 0-1


[Site "https://www.chess.com"]

[Event "Titled Tuesday Blitz February 15 Early 2022"]
[White "Dushyant Sharma"]
[Black "Sadhwani, Raunak"]
[WhiteFideId "25065130"]
[BlackFideId "35093487"]
[WhiteElo "2449"]
[BlackElo "2935"]
[Result "0-1"]
[Round "05"]
[TimeControl "180+1"]
[Date "2022.02.15"]
[WhiteClock "0:00:01"]
[BlackClock "0:00:19"]

1. e4 {[%clk 0:03:00]}  e5 {[%clk 0:02:59]} 2. Nf3 {[%clk 0:03:01]}  Nc6 {[%clk 0:02:58]} 3. Nc3 {[%clk 0:03:00]}  Nf6 {[%clk 0:02:58]} 4. Bb5 {[%clk 0:03:01]}  Bd6 {[%clk 0:02:58]} 5. d3 {[%clk 0:03:01]}  O-O {[%clk 0:02:57]} 6. Bg5 {[%clk 0:02:59]}  h6 {[%clk 0:02:52]} 7. Be3 {[%clk 0:02:59]}  a6 {[%clk 0:02:51]} 8. Ba4 {[%clk 0:02:59]}  b5 {[%clk 0:02:49]} 9. Bb3 {[%clk 0:02:59]}  Na5 {[%clk 0:02:49]} 10. Qd2 {[%clk 0:02:59]}  Nxb3 {[%clk 0:02:49]} 11. axb3 {[%clk 0:02:59]}  Ng4 {[%clk 0:02:50]} 12. Nxb5 {[%clk 0:02:56]}  Nxe3 {[%clk 0:02:50]} 13. fxe3 {[%clk 0:02:53]}  Be7 {[%clk 0:02:46]} 14. Nxe5 {[%clk 0:02:40]}  Bh4+ {[%clk 0:02:39]} 15. g3 {[%clk 0:02:40]}  Bf6 {[%clk 0:02:40]} 16. Nf3 {[%clk 0:02:26]}  Bxb2 {[%clk 0:02:40]} 17. Ra2 {[%clk 0:02:26]}  Bf6 {[%clk 0:02:21]} 18. Nc3 {[%clk 0:02:12]}  c6 {[%clk 0:02:19]} 19. O-O {[%clk 0:02:06]}  d6 {[%clk 0:02:19]} 20. d4 {[%clk 0:02:03]}  Qe7 {[%clk 0:02:17]} 21. Qd3 {[%clk 0:01:59]}  a5 {[%clk 0:02:17]} 22. Rfa1 {[%clk 0:01:58]}  Bg4 {[%clk 0:02:15]} 23. Nd2 {[%clk 0:01:50]}  h5 {[%clk 0:01:42]} 24. Rxa5 {[%clk 0:01:44]}  Rxa5 {[%clk 0:01:42]} 25. Rxa5 {[%clk 0:01:45]}  h4 {[%clk 0:01:43]} 26. Nc4 {[%clk 0:00:48]}  hxg3 {[%clk 0:01:36]} 27. hxg3 {[%clk 0:00:49]}  Bg5 {[%clk 0:01:23]} 28. Kg2 {[%clk 0:00:43]}  f5 {[%clk 0:01:03]} 29. e5 {[%clk 0:00:28]}  d5 {[%clk 0:01:04]} 30. Nd6 {[%clk 0:00:28]}  Qe6 {[%clk 0:01:01]} 31. Ra7 {[%clk 0:00:24]}  Qh6 {[%clk 0:01:00]} 32. Ne2 {[%clk 0:00:08]}  Bxe3 {[%clk 0:00:19]} 33. Ng1 {[%clk 0:00:07]}  f4 {[%clk 0:00:17]} 34. gxf4 {[%clk 0:00:05]}  Bxf4 {[%clk 0:00:18]} 35. c4 {[%clk 0:00:01]}  Qh2+ {[%clk 0:00:18]} 36. Kf1 {[%clk 0:00:01]}  Bg3+ {[%clk 0:00:19]} 37. Nf7 {[%clk 0:00:01]}  Qf2# {[%clk 0:00:19]} 0-1


[Site "https://www.chess.com"]

[Event "Titled Tuesday Blitz February 15 Early 2022"]
[White "Einarsson, Halldor Gretar"]
[Black "Saim, Mohamed Ilias"]
[WhiteFideId "2300150"]
[BlackFideId "7900465"]
[WhiteElo "2114"]
[BlackElo "2006"]
[Result "0-1"]
[Round "05"]
[TimeControl "180+1"]
[Date "2022.02.15"]
[WhiteClock "0:00:02"]
[BlackClock "0:00:05"]

1. d4 {[%clk 0:02:44]}  Nf6 {[%clk 0:02:57]} 2. c4 {[%clk 0:02:42]}  e6 {[%clk 0:02:55]} 3. Nf3 {[%clk 0:02:41]}  d5 {[%clk 0:02:55]} 4. g3 {[%clk 0:02:40]}  Be7 {[%clk 0:02:53]} 5. Bg2 {[%clk 0:02:39]}  O-O {[%clk 0:02:53]} 6. O-O {[%clk 0:02:39]}  b6 {[%clk 0:02:47]} 7. cxd5 {[%clk 0:02:24]}  exd5 {[%clk 0:02:46]} 8. Ne5 {[%clk 0:02:22]}  Bb7 {[%clk 0:02:43]} 9. Nc3 {[%clk 0:02:16]}  Nbd7 {[%clk 0:02:06]} 10. Qa4 {[%clk 0:01:49]}  Nxe5 {[%clk 0:01:28]} 11. dxe5 {[%clk 0:01:46]}  Nd7 {[%clk 0:01:28]} 12. Nxd5 {[%clk 0:01:35]}  Bc5 {[%clk 0:00:58]} 13. Rd1 {[%clk 0:01:12]}  c6 {[%clk 0:00:26]} 14. Nb4 {[%clk 0:01:05]}  Bxb4 {[%clk 0:00:20]} 15. Qxb4 {[%clk 0:01:04]}  Qc7 {[%clk 0:00:20]} 16. Qd6 {[%clk 0:00:40]}  Qxd6 {[%clk 0:00:15]} 17. exd6 {[%clk 0:00:40]}  Rad8 {[%clk 0:00:15]} 18. Bg5 {[%clk 0:00:27]}  f6 {[%clk 0:00:14]} 19. Be3 {[%clk 0:00:24]}  Rfe8 {[%clk 0:00:13]} 20. Rac1 {[%clk 0:00:22]}  Ne5 {[%clk 0:00:13]} 21. Bf4 {[%clk 0:00:18]}  g5 {[%clk 0:00:11]} 22. Bxe5 {[%clk 0:00:16]}  Rxe5 {[%clk 0:00:10]} 23. e3 {[%clk 0:00:14]}  Re6 {[%clk 0:00:08]} 24. Bxc6 {[%clk 0:00:14]}  Bxc6 {[%clk 0:00:06]} 25. Rxc6 {[%clk 0:00:13]}  Kf8 {[%clk 0:00:06]} 26. Kg2 {[%clk 0:00:10]}  Ke8 {[%clk 0:00:07]} 27. f4 {[%clk 0:00:09]}  Kd7 {[%clk 0:00:07]} 28. Rc7+ {[%clk 0:00:06]}  Ke8 {[%clk 0:00:06]} 29. Rxh7 {[%clk 0:00:04]}  Rxe3 {[%clk 0:00:06]} 30. Kf2 {[%clk 0:00:02]}  Re6 {[%clk 0:00:05]} 31. d7+ {[%clk 0:00:01]}  Kf8 {[%clk 0:00:04]} 32. Rh8+ {[%clk 0:00:02]}  Ke7 {[%clk 0:00:05]} 33. Rxd8 {[%clk 0:00:01]}  Kxd8 {[%clk 0:00:05]} 34. fxg5 {[%clk 0:00:02]}  Re7 {[%clk 0:00:05]} 0-1


[Site "https://www.chess.com"]